Cogmind - Beta 17 @@@ ROGUE MODE // 2026.07.21 @ 02:44:03 Player: rz Result: Destroyed by YI-UF0 with YI-UF0's Doublenader Performance ------------- Evolutions (0) 0 Regions Visited (4) 800 Robots Destroyed (11) 55 Value Destroyed (183) 183 Prototype IDs (23) 460 Alien Tech Used (0) 0 Bonus (314) 314 TOTAL SCORE: 1812 Bonus ------- Follower Combat Kills 14 Aligned with FarCom 300 Cogmind --------- Core Integrity 0/250 Matter 274/300 Energy 100/100 System Corruption 0% Temperature Cool (0) Movement Treading (160) Location -9/Mines Parts ------- > --- POWER (1) -------- (None) > --- PROPULSION (2) --- Light Treads Light Treads > --- UTILITY (2) ------ Large Storage Unit > --- WEAPON (2) ------- Light Assault Rifle > --- INVENTORY (15) --- Compact Wheel High-capacity Matter Pod (200) 0b10 Alert Chip Assault Rifle Light Assault Rifle Light Assault Rifle Grenade Launcher Peak State ------------ > --- POWER ------------ Light Angular Momentum Engine > --- PROPULSION ------- Light Treads Light Treads > --- UTILITY ---------- Small Storage Unit Large Storage Unit > --- WEAPON ----------- Light Assault Rifle Light Assault Rifle > --- INVENTORY -------- Light Treads Light Treads Compact Wheel 0b10 Alert Chip Assault Rifle Light Assault Rifle Light Assault Rifle Light Assault Rifle [Rating: 12] Favorites ----------- Power Light Angular Momentum Engine Engine Light Angular Momentum Engine Propulsion Light Treads Treads Light Treads Utility Small Storage Unit Storage Small Storage Unit Weapon Light Assault Rifle Ballistic Gun Light Assault Rifle Build | -11 -10 -10 -10 -9 ------- Run | Yrd Mat Min Exi Min Slots Evolved . | . . . . . Power . | . . . . . Propulsion . | . . . . . Utility . | . . . . . Weapon . | . . . . . Parts Attached 13 | 6 . 3 1 3 Power 3 | 1 . 2 . . Engine 3 | 1 . 2 . . Core . | . . . . . Reactor . | . . . . . Propulsion 4 | 2 . . . 2 Treads 4 | 2 . . . 2 Leg . | . . . . . Wheel . | . . . . . Hover . | . . . . . Flight . | . . . . . Utility 2 | 1 . . 1 . Device . | . . . . . Storage 2 | 1 . . 1 . Processor . | . . . . . Hackware . | . . . . . Protection . | . . . . . Artifact . | . . . . . Weapon 4 | 2 . 1 . 1 Energy Gun . | . . . . . Energy Cannon . | . . . . . Ballistic Gun 4 | 2 . 1 . 1 Ballistic Cannon . | . . . . . Launcher . | . . . . . Special Weapon . | . . . . . Impact Weapon . | . . . . . Slashing Weapon . | . . . . . Piercing Weapon . | . . . . . Special Melee Weapon . | . . . . . Unidentified Prototypes . | . . . . . Parts Lost 6 | . . 1 . 5 Power 1 | . . . . 1 Propulsion 2 | . . . . 2 Utility . | . . . . . Weapon 3 | . . 1 . 2 Highest Loss Streak 5 | . . 1 . 5 To Critical Strikes 1 | . . 1 . . Average Backups 7 | 1 4 7 8 9 Power . | . 1 1 . . Propulsion 2 | 1 2 3 3 2 Utility . | . . . . 2 Weapon 3 | . . 3 4 4 Tool/Special . | . . . . . Unused Backups 9 | . . 1 1 7 Power 1 | . . . 1 . Propulsion 2 | . . 1 . 1 Utility 2 | . . . . 2 Weapon 4 | . . . . 4 Tool/Special . | . . . . . Average Slot Usage (%) 84 | . 85 85 85 83 Engine 13 | . 14 14 14 13 Treads 27 | . 28 28 28 27 Storage 14 | . 14 14 14 14 Ballistic Gun 28 | . 28 28 28 28 Peak Build Rating 12 | 6 6 10 12 11 Average Rating 8 | 4 6 6 10 10 On Entrance 6 | . 6 6 10 11 Avg Prop Armor Cover (%) . | . . . . . Naked Turns . | . . . . . Heaviest Build 36 | 11 11 16 36 31 Greatest Support 40 | 40 40 40 40 40 Greatest Overweight (x) 1 | . . . . 1 Average Overweight (x) . | . . . . . Largest Inventory Capacity 15 | 8 8 8 15 15 Average Capacity 9 | 7 8 8 8 15 Most Carried 10 | 3 8 8 9 10 Average Carried 7 | 1 4 7 8 9 Final Capacity 15 | 8 8 8 15 15 Final Carried 9 | 3 8 8 9 7 Class Distribution -------------------- 100% | Mutant Dominant Class ---------------- Mutant | -10/Materials Mutant | -10/Mines Mutant | -10/Exiles Mutant | -9/Mines Resources | -11 -10 -10 -10 -9 ----------- Run | Yrd Mat Min Exi Min Matter Collected 435 | 246 42 127 20 . Remotely . | . . . . . Salvage Created 327 | . 153 174 . . Parts 22 | . 10 12 . . Haulers Intercepted 1 | . 1 . . . Recyclers Shooed 1 | . . 1 . . Parts Field Recycled . | . . . . . Retrieved Matter . | . . . . . Parts Self-Destructed . | . . . . . Prevented . | . . . . . Parts Restored . | . . . . . Kills | -11 -10 -10 -10 -9 ------- Run | Yrd Mat Min Exi Min Combat Hostiles Destroyed 9 | . 3 6 . . Guns 9 | . 3 6 . . Classes Destroyed 4 | . 3 1 . . Hauler 1 | . 1 . . . Recycler 1 | . 1 . . . Swarmer 6 | . 3 3 . . Grunt 3 | . . 3 . . Best Kill Streak 5 | . 5 3 . . Combat Bots Only 3 | . 3 3 . . Max Kills in Single Turn 1 | . 1 1 . . Gunslinging . | . . . . . Exploded . | . . . . . Melee . | . . . . . Uniques/NPCs Destroyed . | . . . . . Combat | -11 -10 -10 -10 -9 -------- Run | Yrd Mat Min Exi Min Hostile Shots Fired 107 | . 17 68 . 22 Missed 27 | . 2 17 . 8 Hits 80 | . 15 51 . 14 Projectile 80 | . 15 51 . 14 AOE 17 | . . . . 17 Critical Strikes 1 | . . 1 . . Damage Taken 1097 | . 117 473 . 507 Core 259 | . 24 72 . 163 Absorbed by Shields . | . . . . . Core Remaining (%) 100 | 100 . . . . Volleys Fired 47 | . 7 34 . 6 Largest 2 | . 2 2 . 2 Hottest 40 | . 40 40 . 40 Shots Fired 93 | . 14 68 . 11 Gun 93 | . 14 68 . 11 Cannon . | . . . . . Launcher . | . . . . . Special . | . . . . . Kinetic 93 | . 14 68 . 11 Thermal . | . . . . . Explosive . | . . . . . Electromagnetic . | . . . . . Robot Hit Streak 11 | . 11 8 . 6 Robot Miss Streak 6 | . 1 6 . 2 Penetration Max . | . . . . . Secondary Targets 1 | . . 1 . . Max Gunslinging Chain 1 | . . 1 . . Shots Hit Robots 54 | . 11 37 . 6 Core Hits 24 | . 7 16 . 1 Critical Kills . | . . . . . Critical Parts Destroyed . | . . . . . Critical Strikes . | . . . . . Melee Attacks . | . . . . . Impact . | . . . . . Slashing . | . . . . . Piercing . | . . . . . Sneak Attacks . | . . . . . Combat Hostiles . | . . . . . Follow-up Attacks . | . . . . . Damage Inflicted 487 | . 120 323 . 44 Guns 487 | . 120 323 . 44 Cannons . | . . . . . Explosions . | . . . . . Melee . | . . . . . Ramming . | . . . . . Kinetic 487 | . 120 323 . 44 Thermal . | . . . . . Explosive . | . . . . . Electromagnetic . | . . . . . Impact . | . . . . . Slashing . | . . . . . Piercing . | . . . . . Highest Corruption . | . . . . . Average Corruption . | . . . . . Corruption Purged . | . . . . . Corruption Blocked . | . . . . . Overload Shots . | . . . . . Overflow Damage . | . . . . . Projectiles . | . . . . . Explosions . | . . . . . Melee . | . . . . . Knockbacks . | . . . . . Impact . | . . . . . Kinetic . | . . . . . Secondary . | . . . . . Self-Inflicted Damage . | . . . . . Shots . | . . . . . Rammed . | . . . . . Targets Rammed . | . . . . . Kicked . | . . . . . Crushed . | . . . . . Highest Temperature 18 | . . 18 . 4 Average Temperature 8 | . . 9 . 3 Received Heat Transfer 93 | . . 93 . . Siege Activations . | . . . . . Martial Activations . | . . . . . Shielding Activations . | . . . . . Robots Disrupted . | . . . . . Combat Hostiles . | . . . . . Robots Corrupted . | . . . . . Combat Hostiles . | . . . . . Parts Fried . | . . . . . Impact Corruptions . | . . . . . Robots Melted . | . . . . . Combat Hostiles . | . . . . . Parts Melted . | . . . . . Heat Transferred . | . . . . . Parts Sabotaged . | . . . . . Parts Stolen . | . . . . . Parts Stripped . | . . . . . Power Chain Reactions . | . . . . . Alert | -11 -10 -10 -10 -9 ------- Run | Yrd Mat Min Exi Min Maximum Alert Level . | . . . . . Low Security (%) 100 | 100 100 100 . 100 Level 1 . | . . . . . Level 2 . | . . . . . Level 3 . | . . . . . Level 4 . | . . . . . Level 5 . | . . . . . High Security . | . . . . . Max Security . | . . . . . Peak Influence 67 | . 65 67 . . Initial 19 | . . 19 . . Average 13 | . 11 28 . . Influence Increases 279 | . 82 197 . . Destroy 0b10 Robot/C 220 | . 60 160 . . Destroy 0b10 Robot/NC 10 | . 10 . . . Destroy Leader 42 | . 12 30 . . Allied During Kill 7 | . . 7 . . Influence Decreases 279 | . 30 209 40 . Entered New Map 73 | . . 33 40 . Time Decay 196 | . 30 166 . . Lost Part 10 | . . 10 . . Squads Dispatched . | . . . . . Investigation . | . . . . . Extermination . | . . . . . Reinforcement . | . . . . . Assault . | . . . . . Garrison . | . . . . . Intercept . | . . . . . Searches Triggered . | . . . . . Construction Impeded . | . . . . . Haulers Reinforced . | . . . . . Active Scanning Responses . | . . . . . Cargo Convoy Interrupts . | . . . . . Stealth | -11 -10 -10 -10 -9 --------- Run | Yrd Mat Min Exi Min Distress Signals . | . . . . . Communications Jammed . | . . . . . Distress Signals . | . . . . . Times Spotted 15 | . 5 9 . 1 Peak Tracking Total 5 | . 5 3 . 1 Tactical Retreats . | . . . . . Traps | -11 -10 -10 -10 -9 ------- Run | Yrd Mat Min Exi Min Traps Triggered . | . . . . . Indirectly . | . . . . . Trap Hack Attempts . | . . . . . Triggered . | . . . . . Disarmed . | . . . . . Reprogrammed . | . . . . . Reused . | . . . . . Traps Extracted . | . . . . . Installed . | . . . . . Triggered . | . . . . . Machines | -11 -10 -10 -10 -9 ---------- Run | Yrd Mat Min Exi Min Machines Disabled . | . . . . . Max in Single Turn . | . . . . . Machines Repaired . | . . . . . Machines Dismantled . | . . . . . Machines Sabotaged . | . . . . . Overloaded Fab Kills . | . . . . . Hacking | -11 -10 -10 -10 -9 --------- Run | Yrd Mat Min Exi Min Machines Accessed 1 | . . . 1 . Terminals . | . . . . . Fabricators . | . . . . . Repair Stations . | . . . . . Recycling Units . | . . . . . Scanalyzers . | . . . . . Garrison Access . | . . . . . Total Hacks 1 | . . . 1 . Successful 1 | . . . 1 . Failed . | . . . . . Catastrophic . | . . . . . Database Lockouts . | . . . . . Manual 1 | . . . 1 . Terminals . | . . . . . Fabricators . | . . . . . Repair Stations . | . . . . . Recycling Units . | . . . . . Scanalyzers . | . . . . . Garrison Access . | . . . . . Terminal Hacks 1 | . . . 1 . Proto ID Catalog 1 | . . . 1 . Fabricator Hacks . | . . . . . Repair Station Hacks . | . . . . . Recycling Unit Hacks . | . . . . . Scanalyzer . | . . . . . Garrison Access Hacks . | . . . . . Unauthorized Hacks . | . . . . . Terminals . | . . . . . Fabricators . | . . . . . Repair Stations . | . . . . . Recycling Units . | . . . . . Scanalyzers . | . . . . . Garrison Access . | . . . . . Data Cores Recovered . | . . . . . Used . | . . . . . Hacking Detections . | . . . . . Full Trace Events . | . . . . . Feedback Events . | . . . . . Feedback Blocked . | . . . . . Robot Schematics Acquired . | . . . . . Robots Built . | . . . . . Authchips . | . . . . . Time . | . . . . . Total Robot Build Rating . | . . . . . Part Schematics Acquired . | . . . . . Parts Built . | . . . . . Authchips . | . . . . . Time . | . . . . . Total Part Build Rating . | . . . . . Part Studies Acquired . | . . . . . Parts Repaired . | . . . . . Time . | . . . . . Parts Recycled . | . . . . . Recycled Matter . | . . . . . Retrieved Matter . | . . . . . Retrieved Components . | . . . . . Parts Scanalyzed . | . . . . . Part Schematics Acquired . | . . . . . Parts Damaged . | . . . . . Bothacking | -11 -10 -10 -10 -9 ------------ Run | Yrd Mat Min Exi Min Used RIF Installer . | . . . . . Robots Hacked . | . . . . . Non-combat . | . . . . . Combat . | . . . . . Robot Hacks Applied . | . . . . . Relay Couplers Released . | . . . . . Fabnet Peak Effective % . | . . . . . Robots Rewired . | . . . . . Allies Hacked . | . . . . . Hacks Repelled . | . . . . . Allies | -11 -10 -10 -10 -9 -------- Run | Yrd Mat Min Exi Min Total Allies 4 | . . 1 . 3 Largest Group 3 | . . 1 . 3 Highest-Rated Group 40 | . . 31 . 40 Highest-Rated Ally 31 | . . 31 . 16 Total Orders . | . . . . . Ally Attacks 10 | . . 6 . 4 Total Damage 120 | . . 65 . 55 Kills 2 | . . 2 . . Allies Corrupted . | . . . . . Allies Melted . | . . . . . Intel | -11 -10 -10 -10 -9 ------- Run | Yrd Mat Min Exi Min Active Infowar (turns) . | . . . . . Robot Analysis Total . | . . . . . Derelict Logs Recovered 1 | . . . . 1 Drone Launches . | . . . . . Drone Recoveries . | . . . . . Exploration | -11 -10 -10 -10 -9 ------------- Run | Yrd Mat Min Exi Min Turns Passed 1931 | 109 183 394 939 306 Spaces Moved 1063 | 61 99 179 585 139 Core 3 | 3 . . . . Treads 1060 | 58 99 179 585 139 Legs . | . . . . . Wheels . | . . . . . Hover . | . . . . . Flight . | . . . . . Fastest Speed 50 | 50 160 160 160 160 Average Speed 159 | 154 160 160 160 161 Slowest Speed 240 | 160 160 160 160 240 Overloaded Moves . | . . . . . Propulsion Burnouts . | . . . . . Robots Hopped . | . . . . . Potential Cave-ins . | . . . . . Cave-ins Triggered . | . . . . . Exploration Rate (%) 37 | 3 26 47 90 23 Regions Visited 4 Branch Regions 3 Pre-discovered Areas . | . . . . . Known Exits Taken . | . . . . . Unknown Exits Taken 4 | 1 1 1 1 . Scrap Searched 2 | . . . . 2 Spaces Dug . | . . . . . Terrain Destroyed . | . . . . . Melee . | . . . . . Projectile . | . . . . . AOE . | . . . . . Terrain Rammed . | . . . . . Walls Destroyed . | . . . . . Machines Disabled . | . . . . . Actions | -11 -10 -10 -10 -9 --------- Run | Yrd Mat Min Exi Min Total 1216 | 73 111 230 589 213 Wait 78 | 4 1 9 . 64 Move 1059 | 60 98 178 584 139 Hop . | . . . . . Pick Up 14 | 3 5 3 2 1 Fast Attach 7 | 6 . . 1 . Attach 4 | . . 1 . 3 Detach . | . . . . . Swap 2 | . . 2 . . Drop 5 | . . 3 2 . Fire 47 | . 7 34 . 6 Melee . | . . . . . Ram . | . . . . . Kick . | . . . . . Crush . | . . . . . Escape Stasis . | . . . . . Rewire . | . . . . . Trap . | . . . . . Miscellaneous . | . . . . . Route ------- -11/Scrapyard -10/Materials -10/Mines -10/Exiles -9/Mines History --------- Turn | Location | Event 6 | -11/Scrapyard | Discovered new exit (range 16) 110 | -11/Scrapyard | Entered Materials 205 | -10/Materials | Discovered new exit (range 7) 293 | -10/Materials | Entered Mines 296 | -10/Mines | Received a Mining Laser from a helpful Derelict 301 | -10/Mines | Build established: Mutant 310 | -10/Mines | Met a Derelict bent on vengeance 331 | -10/Mines | Received a Rocket Launcher from a helpful Derelict 679 | -10/Mines | Deemed a non-threat by the Exiles lab entrance 681 | -10/Mines | Discovered new exit (range 5) 687 | -10/Mines | Entered Exiles 726 | -10/Exiles | Met 8R-AWN 753 | -10/Exiles | Met EX-HEX 835 | -10/Exiles | Met EX-DEC 866 | -10/Exiles | Visited The Gauntlet 1115 | -10/Exiles | Discovered new exit (range 15) 1249 | -10/Exiles | Met EX-BIN 1279 | -10/Exiles | Aligned with FarCom system 1281 | -10/Exiles | Given EX-Vault access code 1331 | -10/Exiles | Opened EX-Vault 1344 | -10/Exiles | Found 0b10 Alert Chip 1375 | -10/Exiles | Warned to stay clear of 0b10 Research branches 1626 | -10/Exiles | Left Exiles lab with 0b10 Alert Chip 1626 | -10/Exiles | Entered Mines 1668 | -9/Mines | Learned Materials emergency access door positions 1684 | -9/Mines | Assisted by bots powering up and referring to "LRC-V3" 1725 | -9/Mines | Assembled infested the area 1730 | -9/Mines | Assisted by a Guerilla fighting off Assembled 1768 | -9/Mines | Lost 4 allies 1771 | -9/Mines | YI-UF0 nonchalantly dropped a Grenade Launcher on the ground 1913 | -9/Mines | Core integrity fell below 50% 1919 | -9/Mines | Core integrity fell below 20% 1932 | -9/Mines | Destroyed by YI-UF0 with YI-UF0's Doublenader Last Messages --------------- 01782_ YI-UF0 mumbles something. 01900_ The unstable cave ceiling collapses. 01906_ Lgt. Treads destroyed. 01907_ The unstable cave ceiling collapses. 01910_ Lgt. Treads destroyed. 01911_ The unstable cave ceiling collapses. 01912_ Wheel crushed. 01914_ The unstable cave ceiling collapses. 01918_ Lgt. Angular Momentum Engine destroyed. 01918_ Lgt. Assault Rifle destroyed. 01918_ K-01 Serf collects debris. 01919_ The unstable cave ceiling collapses. 01923_ K-01 Serf collects debris. 01924_ The unstable cave ceiling collapses. 01927_ K-01 Serf collects debris. 01928_ The unstable cave ceiling collapses. 01930_ Lgt. Assault Rifle destroyed. 01930_ K-01 Serf collects debris. 01930_ R-06 Scavenger collects Sml. Storage Unit. Map ----- +----------------------------------------------------+ | ??????????????????????## ###??????????????? | | ???????????????????????####### #????????????????? | | ???????????????????????????# #????????????????? | | ???????????????????????????# #????????????????? | | ???????????????????????????# ###????????????????? | | ???????????????????????????# #??????????????????? | | ???????????????????????????#= #??????????????????? | | ???????????????????????????#%|#??????????????????? | | ???????????????????????????#! #??????????????????? | | ???????????????????????????# #??????????????????? | | ???????????????????????????# #??????????????????? | | ???????????????????????????# #??????????????????? | | ???????????????????????????# #??????????????????? | | ???????????????????????????# #???####???????????? | | ???????????????????????????# #??# ##??????????? | | ????????????????????######## ### #??????????? | | ?????????????????#### # #??????????? | | ????????????????## # #??????????? | | ??????????#####?# ##??????????? | | #?????????# #??# #####???????????? | | ?????????# #?## ###???????????????? | | ?????????# ### #?????????????????? | | ????????## # #??????????????????? | | ???????## ## #??????????????????? | | #??????## t ## #??????????????? | | #??????# ## @ #?????????????? | | #??????# #### # # #????????????? | | #??????## ####??## # g #????????????? | | #???????## #??????# # %% ??????????? | | ##????#### #??????# ### # # ###?????????? | | ##???# #??????# #?### k ##???????????? | | ###?# #??????# #???# r # #????????????? | | ! ### ####??????# #????# # # #????????????? | | [% #?????????? ????? ! #? ???????????? | | ! ######?????????? ?????### % ###??#???????????? | | # ##??????????????? ?????? # * ##???????????????? | | ####????????????????#?????? # = ????????????????? | | ????????????????????????????## % ???????????????? | | ?????????????????????????????? ????????????????? | | ?????????????????????????????? ????????????????? | | ??????????????????????????????## ????????????????? | | ?????????????????????????????????????????????????? | | ?????????????????????????????????????????????????? | | ?????????????????????????????????????????????????? | | ?????????????????????????????????????????????????? | | ?????????????????????????????????????????????????? | | ?????????????????????????????????????????????????? | | | | | | | +----------------------------------------------------+ Best States ------------- Heat Dissipation 25 Energy Generation 18 Energy Capacity 250 Matter Stores 300 Matter Capacity 300 Sight Range 16 Terrain Scan Density 10 Evasion (%) 40 Recoil Reduction 2 Item Schematics ----------------- None Robot Schematics ------------------ None Fabricated ------------ Nothing Repaired ---------- Nothing Studied --------- None Alien Tech Used ----------------- None Achievements -------------- None Challenges ------------ None Game ------ Seed GatlingDispersalTube Manual? 0 Play Time 00:10:59 Cumulative 98.2 hours Start 2026.07.21 @ 02:34:20 End 2026.07.21 @ 02:44:03 Sessions 1 Manual Loads 0 Difficulty Rogue Special Mode None Game No. 110 Rogue 56 Adventurer 54 Explorer 0 Win Type - Total 2 Types 2/0/0/0/0/0/0/0/0/0 Lore% 44 Gallery% 47 Achievement% 43 Wizard Run 0 Options --------- Layout 1 ASCII 0 Keyboard 0 Movement Mouse Keybinds 1 Fullscreen 1 Font 32/Tamsyn Map View 50x35 Zoom Use 0% Tactical HUD 1 Map Filters NONE Filters NONE Steam 1 RUN: 7940cfaa-f6ff-4e17-b2e0-a100b1fad879